[Event "4th Baskent University Open 2019"]
[Site "Ankara"]
[Date "2019.06.18"]
[Round "3"]
[White "Can, Isik"]
[Black "Buker, Muhittin"]
[Result "1-0"]
[ECO "B98"]
[WhiteElo "2379"]
[BlackElo "1991"]
[Annotator "NA"]
[PlyCount "61"]
[EventDate "2019.06.18"]
[EventType "swiss"]
[EventCountry "TUR"]
[SourceTitle "playchess.com"]
[Source "ChessBase"]
[SourceQuality "1"]
[TimeControl "5400+30"]

1. e4 {[%emt 0:00:30]} c5 {[%emt 0:00:30]} 2. Nf3 {[%emt 0:00:30]} d6 {[%emt 0:00:30]} 3. d4 {[%emt 0:00:00]} cxd4 {[%emt 0:00:30]} 4. Nxd4 {[%emt 0:00:00]} Nf6 {[%emt 0:00:00]} 5. Nc3 {[%emt 0:00:30]} a6 {[%emt 0:00:00]} 6. Bg5 {[%emt 0:00:00]} e6 {[%emt 0:00:30]} 7. f4 {[%emt 0:00:00]} Be7 {[%emt 0:00:30]} 8. Qf3 {[%emt 0:00:00]} Qc7 {[%emt 0:00:30]} 9. O-O-O {[%emt 0:00:00]} b5 {[%emt 0:09:30]} 10. e5 {[%emt 0:03:30]} Bb7 {[%emt 0:00:30]} 11. Qg3 {[%emt 0:01:30]} dxe5 {[%emt 0:05:30]} 12. fxe5 {[%emt 0:00:30]} Nh5 {[%emt 0:00:00]} 13. Qh4 {[%emt 0:01:30]} g6 {[%emt 0:02:00]} 14. Bxb5+ {[%emt 0:06:30]} axb5 {[%emt 0:20:30]} 15. Ndxb5 {[%emt 0:00:00]} Bxg5+ {[%emt 0:09:30]} 16. Qxg5 {[%emt 0:00:00]} Qe7 {[%emt 0:01:30]} 17. Nd6+ {[%emt 0:02:30]} Kf8 {[%emt 0:00:30]} 18. Qxe7+ {[%emt 0:01:30]} Kxe7 {[%emt 0:02:30]} 19. Nxb7 {[%emt 0:00:30]} Nd7 {[%emt 0:00:30]} 20. Rhe1 {[%emt 0:00:00]} Rhb8 {[%emt 0:00:30]} 21. Nd6 {[%emt 0:00:00]} Ra5 {[%emt 0:03:30]} 22. Nxf7 {[%emt 0:03:30]} Nf4 {[%emt 0:00:30]} 23. g3 {[%emt 0:01:30]} Nd5 {[%emt 0:00:30]} 24. Nxd5+ {[%emt 0:00:30]} exd5 {[%emt 0:00:00]} 25. e6 {[%emt 0:00:30]} Nf6 {[%emt 0:03:00]} 26. a3 {[%emt 0:00:30]} Ne4 {[%emt 0:01:30]} 27. Ne5 {[%emt 0:01:30]} Rc8 {[%emt 0:00:30]} 28. Nd3 {[%emt 0:00:30]} Kxe6 {[%emt 0:02:30]} 29. Nf4+ {[%emt 0:00:00]} Ke5 {[%emt 0:00:00]} 30. b4 {[%emt 0:00:00]} Rb5 {[%emt 0:03:00]} 31. a4 {[%emt 0:00:00]} 1-0

[Event "4th Baskent University Open 2019"]
[Site "Ankara"]
[Date "2019.06.18"]
[Round "3"]
[White "Koksal, Ege"]
[Black "Grigoriev, Armen"]
[Result "1-0"]
[ECO "D38"]
[WhiteElo "2363"]
[BlackElo "1986"]
[Annotator "NA"]
[PlyCount "79"]
[EventDate "2019.06.18"]
[EventType "swiss"]
[EventCountry "TUR"]
[SourceTitle "playchess.com"]
[Source "ChessBase"]
[SourceQuality "1"]
[TimeControl "5400+30"]

1. d4 {[%emt 0:03:30]} Nf6 {[%emt 0:00:30]} 2. c4 {[%emt 0:00:30]} e6 {[%emt 0:00:00]} 3. Nf3 {[%emt 0:00:30]} d5 {[%emt 0:00:00]} 4. Nc3 {[%emt 0:00:30]} Bb4 {[%emt 0:00:30]} 5. Qb3 {[%emt 0:01:30]} a5 {[%emt 0:02:30]} 6. Bg5 {[%emt 0:02:30]} c6 {[%emt 0:00:30]} 7. e3 {[%emt 0:01:30]} Nbd7 {[%emt 0:01:30]} 8. Be2 {[%emt 0:03:30]} O-O {[%emt 0:01:30]} 9. O-O {[%emt 0:00:00]} Be7 {[%emt 0:05:30]} 10. Rac1 {[%emt 0:03:00]} dxc4 {[%emt 0:06:30]} 11. Bxc4 {[%emt 0:01:30]} Nd5 {[%emt 0:00:30]} 12. Bxe7 {[%emt 0:00:30]} Qxe7 {[%emt 0:00:30]} 13. e4 {[%emt 0:00:30]} Nxc3 {[%emt 0:06:30]} 14. Qxc3 {[%emt 0:00:30]} b6 {[%emt 0:00:30]} 15. Rfe1 {[%emt 0:04:30]} Bb7 {[%emt 0:01:30]} 16. d5 {[%emt 0:01:30]} Nc5 {[%emt 0:01:30]} 17. dxe6 {[%emt 0:00:30]} Nxe6 {[%emt 0:00:30]} 18. Qe5 {[%emt 0:00:30]} c5 {[%emt 0:05:30]} 19. Rcd1 {[%emt 0:05:30]} Rad8 {[%emt 0:01:30]} 20. Bd5 {[%emt 0:03:30]} Rfe8 {[%emt 0:01:30]} 21. h3 {[%emt 0:03:30]} h6 {[%emt 0:00:30]} 22. Qg3 {[%emt 0:02:30]} Bc8 {[%emt 0:05:30]} 23. Ne5 {[%emt 0:06:30]} Qc7 {[%emt 0:20:30]} 24. Nc4 {[%emt 0:12:30]} Nf4 {[%emt 0:07:30]} 25. a4 {[%emt 0:04:30]} Ba6 {[%emt 0:02:30]} 26. b3 {[%emt 0:11:30]} Bxc4 {[%emt 0:02:30]} 27. bxc4 {[%emt 0:00:30]} Ne6 {[%emt 0:02:30]} 28. Qxc7 {[%emt 0:01:30]} Nxc7 {[%emt 0:00:00]} 29. Bc6 {[%emt 0:02:30]} Rf8 {[%emt 0:04:00]} 30. Rxd8 {[%emt 0:03:30]} Rxd8 {[%emt 0:00:30]} 31. Rb1 {[%emt 0:00:00]} Rd4 {[%emt 0:07:22]} 32. Rxb6 {[%emt 0:00:00]} Rxc4 {[%emt 0:00:01]} 33. Rb8+ {[%emt 0:05:12]} Kh7 {[%emt 0:00:30]} 34. Rb7 {[%emt 0:00:00]} Ne6 {[%emt 0:00:29]} 35. Bd5 {[%emt 0:01:08]} Rxa4 {[%emt 0:00:41]} 36. Rxf7 {[%emt 0:00:07]} Nd4 {[%emt 0:03:52]} 37. Kh2 {[%emt 0:07:07]} Ne2 {[%emt 0:06:39]} 38. e5 {[%emt 0:04:20]} Nf4 {[%emt 0:02:28]} 39. Bc6 {[%emt 0:00:18]} Kg6 {[%emt 0:01:26]} 40. Be8 {[%emt 0:01:16]} 1-0

[Event "4th Baskent University Open 2019"]
[Site "Ankara"]
[Date "2019.06.18"]
[Round "3"]
[White "Babayev, Talib"]
[Black "Sakalli, Mustafa"]
[Result "1/2-1/2"]
[ECO "A00"]
[WhiteElo "2290"]
[BlackElo "1916"]
[Annotator "NA"]
[PlyCount "111"]
[EventDate "2019.06.18"]
[EventType "swiss"]
[EventCountry "TUR"]
[SourceTitle "playchess.com"]
[Source "ChessBase"]
[SourceQuality "1"]
[TimeControl "5400+30"]

1. Nc3 {[%emt 0:00:30]} d5 {[%emt 0:01:30]} 2. e4 {[%emt 0:00:30]} dxe4 {[%emt 0:00:30]} 3. Nxe4 {[%emt 0:00:00]} g6 {[%emt 0:00:30]} 4. Bc4 {[%emt 0:00:00]} Bg7 {[%emt 0:01:30]} 5. Nf3 {[%emt 0:04:30]} Nf6 {[%emt 0:01:30]} 6. Neg5 {[%emt 0:00:30]} O-O {[%emt 0:00:00]} 7. Ne5 {[%emt 0:00:30]} e6 {[%emt 0:00:00]} 8. d4 {[%emt 0:00:00]} c5 {[%emt 0:00:30]} 9. O-O {[%emt 0:06:00]} Nc6 {[%emt 0:07:30]} 10. Nxc6 {[%emt 0:01:30]} bxc6 {[%emt 0:00:00]} 11. dxc5 {[%emt 0:03:30]} Qa5 {[%emt 0:02:00]} 12. Qd6 {[%emt 0:07:30]} Rd8 {[%emt 0:02:30]} 13. Qxc6 {[%emt 0:02:30]} Bd7 {[%emt 0:00:00]} 14. Qa6 {[%emt 0:00:30]} Qxc5 {[%emt 0:01:00]} 15. Be3 {[%emt 0:02:30]} Qc7 {[%emt 0:06:30]} 16. h3 {[%emt 0:10:30]} h6 {[%emt 0:04:30]} 17. Nf3 {[%emt 0:00:30]} Bc6 {[%emt 0:00:30]} 18. Nd4 {[%emt 0:02:30]} Bb7 {[%emt 0:00:30]} 19. Qa4 {[%emt 0:00:30]} Nd5 {[%emt 0:04:30]} 20. Bxd5 {[%emt 0:01:30]} Rxd5 {[%emt 0:00:30]} 21. Rfd1 {[%emt 0:02:30]} Ra5 {[%emt 0:17:30]} 22. Qb4 {[%emt 0:00:30]} Rb8 {[%emt 0:00:30]} 23. Qe1 {[%emt 0:02:30]} Rh5 {[%emt 0:01:30]} 24. b3 {[%emt 0:10:30]} a6 {[%emt 0:10:30]} 25. Rac1 {[%emt 0:03:30]} e5 {[%emt 0:00:30]} 26. Ne2 {[%emt 0:00:30]} Qc6 {[%emt 0:00:30]} 27. f3 {[%emt 0:00:30]} Rxh3 {[%emt 0:00:30]} 28. Ng3 {[%emt 0:03:30]} Rxg3 {[%emt 0:03:30]} 29. Qxg3 {[%emt 0:00:00]} f5 {[%emt 0:00:00]} 30. Qh3 {[%emt 0:05:00]} Kh7 {[%emt 0:01:00]} 31. c4 {[%emt 0:01:30]} f4 {[%emt 0:02:30]} 32. Bf2 {[%emt 0:00:30]} Bc8 {[%emt 0:00:30]} 33. Qh2 {[%emt 0:00:30]} g5 {[%emt 0:00:30]} 34. c5 {[%emt 0:03:30]} Bf8 {[%emt 0:05:30]} 35. Re1 {[%emt 0:00:30]} Qf6 {[%emt 0:01:30]} 36. c6 {[%emt 0:00:30]} Bf5 {[%emt 0:01:30]} 37. Kh1 {[%emt 0:00:30]} Rc8 {[%emt 0:00:30]} 38. Bc5 {[%emt 0:04:30]} Bg7 {[%emt 0:01:30]} 39. Qg1 {[%emt 0:05:05]} h5 {[%emt 0:02:30]} 40. Ba3 {[%emt 0:01:23]} g4 {[%emt 0:00:30]} 41. Qh2 {[%emt 0:00:09]} Kg6 {[%emt 0:00:30]} 42. g3 {[%emt 0:05:01]} fxg3 {[%emt 0:05:01]} 43. Qxg3 {[%emt 0:00:13]} Rxc6 {[%emt 0:00:37]} 44. fxg4 {[%emt 0:00:56]} hxg4 {[%emt 0:01:03]} 45. Rxc6 {[%emt 0:01:11]} Qxc6+ {[%emt 0:00:30]} 46. Qg2 {[%emt 0:00:00]} Qc3 {[%emt 0:02:18]} 47. Rc1 {[%emt 0:00:14]} Qf3 {[%emt 0:00:00]} 48. Qxf3 {[%emt 0:03:05]} gxf3 {[%emt 0:00:30]} 49. Bb2 {[%emt 0:00:07]} Be4 {[%emt 0:01:21]} 50. Kg1 {[%emt 0:00:05]} Kf5 {[%emt 0:00:06]} 51. Rc5 {[%emt 0:00:30]} Bf6 {[%emt 0:00:44]} 52. a4 {[%emt 0:03:52]} Bd3 {[%emt 0:00:29]} 53. Kf2 {[%emt 0:00:36]} Kg4 {[%emt 0:00:37]} 54. Ke3 {[%emt 0:03:13]} Be2 {[%emt 0:02:19]} 55. Rxe5 {[%emt 0:00:47]} Bg5+ {[%emt 0:00:46]} 56. Rxg5+ {[%emt 0:00:30]} 1/2-1/2

[Event "4th Baskent University Open 2019"]
[Site "Ankara"]
[Date "2019.06.18"]
[Round "3"]
[White "Mohannad, Farhan"]
[Black "Yarar, Bora"]
[Result "1/2-1/2"]
[ECO "E93"]
[WhiteElo "2193"]
[BlackElo "1732"]
[Annotator "NA"]
[PlyCount "120"]
[EventDate "2019.06.18"]
[EventType "swiss"]
[EventCountry "TUR"]
[SourceTitle "playchess.com"]
[Source "ChessBase"]
[SourceQuality "1"]
[TimeControl "5400+30"]

1. d4 {[%emt 0:02:30]} Nf6 {[%emt 0:01:30]} 2. Nf3 {[%emt 0:00:00]} g6 {[%emt 0:00:00]} 3. c4 {[%emt 0:00:00]} Bg7 {[%emt 0:00:00]} 4. Nc3 {[%emt 0:00:00]} O-O {[%emt 0:00:30]} 5. e4 {[%emt 0:00:00]} d6 {[%emt 0:00:30]} 6. Be2 {[%emt 0:00:30]} Nbd7 {[%emt 0:00:30]} 7. Bg5 {[%emt 0:03:30]} h6 {[%emt 0:02:30]} 8. Bh4 {[%emt 0:00:00]} e5 {[%emt 0:02:30]} 9. d5 {[%emt 0:00:00]} g5 {[%emt 0:01:30]} 10. Bg3 {[%emt 0:00:30]} Nc5 {[%emt 0:01:30]} 11. Nd2 {[%emt 0:00:00]} a5 {[%emt 0:02:30]} 12. O-O {[%emt 0:00:00]} Nh7 {[%emt 0:07:30]} 13. Bg4 {[%emt 0:05:30]} Nd3 {[%emt 0:04:30]} 14. Bxc8 {[%emt 0:00:30]} Qxc8 {[%emt 0:00:30]} 15. Qc2 {[%emt 0:04:30]} Nf4 {[%emt 0:00:30]} 16. f3 {[%emt 0:00:30]} Nf6 {[%emt 0:03:30]} 17. Rfe1 {[%emt 0:03:30]} Kh8 {[%emt 0:03:30]} 18. Nd1 {[%emt 0:00:30]} Rg8 {[%emt 0:01:30]} 19. Ne3 {[%emt 0:00:30]} N6h5 {[%emt 0:07:30]} 20. Nf5 {[%emt 0:00:30]} Qd7 {[%emt 0:01:30]} 21. Nf1 {[%emt 0:01:30]} Nf6 {[%emt 0:08:30]} 22. N1e3 {[%emt 0:00:00]} h5 {[%emt 0:00:30]} 23. h3 {[%emt 0:07:00]} Bf8 {[%emt 0:02:30]} 24. b3 {[%emt 0:00:30]} Rg6 {[%emt 0:02:30]} 25. Qd1 {[%emt 0:09:30]} Be7 {[%emt 0:03:30]} 26. Kf2 {[%emt 0:03:30]} Kh7 {[%emt 0:10:30]} 27. Rh1 {[%emt 0:00:30]} Rh8 {[%emt 0:01:30]} 28. a3 {[%emt 0:01:30]} Kg8 {[%emt 0:01:30]} 29. b4 {[%emt 0:02:30]} Kf8 {[%emt 0:03:30]} 30. bxa5 {[%emt 0:00:30]} Rhg8 {[%emt 0:00:30]} 31. Rb1 {[%emt 0:06:30]} Qc8 {[%emt 0:06:53]} 32. Qb3 {[%emt 0:00:30]} Qa8 {[%emt 0:03:20]} 33. Qc3 {[%emt 0:10:30]} g4 {[%emt 0:03:12]} 34. hxg4 {[%emt 0:00:00]} hxg4 {[%emt 0:00:00]} 35. Rh6 {[%emt 0:10:00]} Rxh6 {[%emt 0:00:29]} 36. Nxh6 {[%emt 0:08:30]} gxf3 {[%emt 0:00:16]} 37. Qc2 {[%emt 0:02:30]} Rxg3 {[%emt 0:09:56]} 38. Kxg3 {[%emt 0:00:30]} Ne2+ {[%emt 0:00:07]} 39. Kh2 {[%emt 0:03:41]} Nd4 {[%emt 0:02:05]} 40. Qd3 {[%emt 0:01:42]} fxg2 {[%emt 0:00:10]} 41. Kxg2 {[%emt 0:00:17]} Nh5 {[%emt 0:00:41]} 42. Rf1 {[%emt 0:01:46]} Bg5 {[%emt 0:02:00]} 43. Rxf7+ {[%emt 0:07:03]} Ke8 {[%emt 0:00:01]} 44. Qd1 {[%emt 0:00:00]} Nf6 {[%emt 0:02:13]} 45. Rxf6 {[%emt 0:03:36]} Bxf6 {[%emt 0:00:02]} 46. Qh5+ {[%emt 0:00:16]} Kd7 {[%emt 0:00:08]} 47. Qf7+ {[%emt 0:01:26]} Be7 {[%emt 0:00:06]} 48. Nef5 {[%emt 0:01:06]} Qf8 {[%emt 0:00:41]} 49. Qh7 {[%emt 0:01:39]} Qf6 {[%emt 0:01:04]} 50. Nxd4 {[%emt 0:01:04]} Qg5+ {[%emt 0:00:22]} 51. Kf2 {[%emt 0:00:28]} Qh4+ {[%emt 0:00:45]} 52. Ke2 {[%emt 0:00:15]} Qh2+ {[%emt 0:00:00]} 53. Kd3 {[%emt 0:00:20]} Qg3+ {[%emt 0:00:00]} 54. Kc2 {[%emt 0:00:30]} Qf2+ {[%emt 0:00:10]} 55. Kb3 {[%emt 0:00:13]} Qe3+ {[%emt 0:00:24]} 56. Kc2 {[%emt 0:00:57]} Qf2+ {[%emt 0:00:08]} 57. Kb3 {[%emt 0:01:06]} Qe3+ {[%emt 0:00:07]} 58. Ka4 {[%emt 0:00:24]} Qxd4 {[%emt 0:00:19]} 59. Qf5+ {[%emt 0:00:42]} Kd8 {[%emt 0:00:13]} 60. Kb3 {[%emt 0:00:49]} Qd1+ {[%emt 0:00:05]} 1/2-1/2

[Event "4th Baskent University Open 2019"]
[Site "Ankara"]
[Date "2019.06.18"]
[Round "3"]
[White "Yilmaz, Goktan"]
[Black "Odeev, Handszar"]
[Result "1/2-1/2"]
[ECO "B32"]
[WhiteElo "2155"]
[BlackElo "2386"]
[Annotator "NA"]
[PlyCount "133"]
[EventDate "2019.06.18"]
[EventType "swiss"]
[EventCountry "TUR"]
[SourceTitle "playchess.com"]
[Source "ChessBase"]
[SourceQuality "1"]
[TimeControl "5400+30"]

1. e4 {[%emt 0:00:30]} c5 {[%emt 0:00:30]} 2. Nf3 {[%emt 0:00:00]} Nc6 {[%emt 0:01:30]} 3. d4 {[%emt 0:00:00]} cxd4 {[%emt 0:00:30]} 4. Nxd4 {[%emt 0:00:30]} e5 {[%emt 0:01:30]} 5. Nb5 {[%emt 0:00:30]} d6 {[%emt 0:00:00]} 6. N1c3 {[%emt 0:04:30]} a6 {[%emt 0:02:00]} 7. Na3 {[%emt 0:00:30]} Be6 {[%emt 0:08:30]} 8. Nc4 {[%emt 0:04:30]} Rc8 {[%emt 0:00:30]} 9. Ne3 {[%emt 0:04:30]} Nf6 {[%emt 0:04:30]} 10. g3 {[%emt 0:01:30]} h5 {[%emt 0:06:30]} 11. h3 {[%emt 0:04:30]} g6 {[%emt 0:00:30]} 12. Bg2 {[%emt 0:01:30]} Bh6 {[%emt 0:06:30]} 13. Ncd5 {[%emt 0:09:30]} Bxd5 {[%emt 0:05:30]} 14. Nxd5 {[%emt 0:01:30]} Bxc1 {[%emt 0:16:30]} 15. Rxc1 {[%emt 0:02:30]} h4 {[%emt 0:00:00]} 16. Nxf6+ {[%emt 0:19:30]} Qxf6 {[%emt 0:00:00]} 17. O-O {[%emt 0:03:30]} Kf8 {[%emt 0:06:30]} 18. c3 {[%emt 0:00:30]} Kg7 {[%emt 0:00:30]} 19. Qd2 {[%emt 0:06:30]} Nd8 {[%emt 0:03:30]} 20. Rcd1 {[%emt 0:02:30]} Rc6 {[%emt 0:01:30]} 21. f4 {[%emt 0:04:30]} hxg3 {[%emt 0:09:30]} 22. fxe5 {[%emt 0:03:30]} Qxe5 {[%emt 0:00:30]} 23. Qe2 {[%emt 0:01:30]} Ne6 {[%emt 0:14:28]} 24. Qg4 {[%emt 0:01:30]} Qg5 {[%emt 0:03:33]} 25. Qf3 {[%emt 0:02:30]} Rf8 {[%emt 0:02:18]} 26. Rd5 {[%emt 0:00:59]} Qh4 {[%emt 0:00:09]} 27. Qe3 {[%emt 0:01:24]} f6 {[%emt 0:02:34]} 28. Rd3 {[%emt 0:02:16]} Ng5 {[%emt 0:01:36]} 29. Qxg3 {[%emt 0:01:59]} Qxg3 {[%emt 0:00:34]} 30. Rxg3 {[%emt 0:00:04]} Rc5 {[%emt 0:01:03]} 31. Rd3 {[%emt 0:01:03]} Nf7 {[%emt 0:00:14]} 32. Rfd1 {[%emt 0:00:48]} Re5 {[%emt 0:00:22]} 33. Rd5 {[%emt 0:01:18]} Re7 {[%emt 0:00:36]} 34. c4 {[%emt 0:01:14]} Rc8 {[%emt 0:00:22]} 35. b3 {[%emt 0:00:20]} Rc5 {[%emt 0:01:20]} 36. Kf2 {[%emt 0:01:28]} Rxd5 {[%emt 0:00:11]} 37. Rxd5 {[%emt 0:01:38]} Rc7 {[%emt 0:00:32]} 38. Ke3 {[%emt 0:01:38]} Kf8 {[%emt 0:00:30]} 39. Rd2 {[%emt 0:00:55]} Ke7 {[%emt 0:00:07]} 40. Kd4 {[%emt 0:00:30]} Ne5 {[%emt 0:00:27]} 41. Rf2 {[%emt 0:01:36]} Rc8 {[%emt 0:00:12]} 42. Bf1 {[%emt 0:00:25]} Rh8 {[%emt 0:00:45]} 43. Ke3 {[%emt 0:02:52]} g5 {[%emt 0:00:39]} 44. Rc2 {[%emt 0:00:33]} Nd7 {[%emt 0:01:25]} 45. b4 {[%emt 0:00:45]} Rc8 {[%emt 0:00:56]} 46. Kd4 {[%emt 0:00:21]} Nf8 {[%emt 0:00:12]} 47. Be2 {[%emt 0:01:19]} Ne6+ {[%emt 0:00:06]} 48. Ke3 {[%emt 0:00:10]} a5 {[%emt 0:00:19]} 49. a3 {[%emt 0:01:00]} axb4 {[%emt 0:00:05]} 50. axb4 {[%emt 0:00:30]} Ra8 {[%emt 0:00:30]} 51. Rc3 {[%emt 0:00:30]} Ra4 {[%emt 0:00:30]} 52. Rb3 {[%emt 0:00:30]} Ra1 {[%emt 0:00:30]} 53. Bg4 {[%emt 0:00:30]} Re1+ {[%emt 0:00:30]} 54. Kd3 {[%emt 0:00:00]} Nf4+ {[%emt 0:02:00]} 55. Kd4 {[%emt 0:00:00]} Ra1 {[%emt 0:00:15]} 56. c5 {[%emt 0:02:40]} Ne6+ {[%emt 0:00:22]} 57. Bxe6 {[%emt 0:02:16]} Kxe6 {[%emt 0:00:03]} 58. Rf3 {[%emt 0:00:22]} Rd1+ {[%emt 0:00:36]} 59. Kc4 {[%emt 0:01:29]} Re1 {[%emt 0:00:12]} 60. cxd6 {[%emt 0:00:42]} Rxe4+ {[%emt 0:00:17]} 61. Kc5 {[%emt 0:00:09]} b6+ {[%emt 0:01:18]} 62. Kxb6 {[%emt 0:01:17]} Rxb4+ {[%emt 0:00:32]} 63. Kc5 {[%emt 0:00:16]} Rb1 {[%emt 0:00:42]} 64. Re3+ {[%emt 0:00:18]} Kd7 {[%emt 0:00:29]} 65. Re7+ {[%emt 0:00:39]} Kd8 {[%emt 0:00:00]} 66. Rf7 {[%emt 0:00:00]} Rb3 {[%emt 0:00:27]} 67. Rxf6 {[%emt 0:00:59]} 1/2-1/2

[Event "4th Baskent University Open 2019"]
[Site "Ankara"]
[Date "2019.06.18"]
[Round "3"]
[White "Kizilkus, Akin"]
[Black "Ergani, Efe"]
[Result "1/2-1/2"]
[ECO "A65"]
[WhiteElo "2131"]
[BlackElo "1748"]
[Annotator "NA"]
[PlyCount "83"]
[EventDate "2019.06.18"]
[EventType "swiss"]
[EventCountry "TUR"]
[SourceTitle "playchess.com"]
[Source "ChessBase"]
[SourceQuality "1"]
[TimeControl "5400+30"]

1. d4 {[%emt 0:00:30]} Nf6 {[%emt 0:02:30]} 2. c4 {[%emt 0:00:00]} c5 {[%emt 0:00:30]} 3. d5 {[%emt 0:00:00]} e6 {[%emt 0:00:00]} 4. Nc3 {[%emt 0:00:30]} exd5 {[%emt 0:00:00]} 5. cxd5 {[%emt 0:00:00]} d6 {[%emt 0:00:00]} 6. e4 {[%emt 0:00:00]} g6 {[%emt 0:00:00]} 7. Bd3 {[%emt 0:00:30]} Bg7 {[%emt 0:00:30]} 8. h3 {[%emt 0:00:30]} O-O {[%emt 0:00:30]} 9. Bg5 {[%emt 0:00:30]} Na6 {[%emt 0:07:30]} 10. Nf3 {[%emt 0:01:30]} Nc7 {[%emt 0:05:30]} 11. a4 {[%emt 0:01:30]} Rb8 {[%emt 0:05:30]} 12. O-O {[%emt 0:00:00]} a6 {[%emt 0:02:30]} 13. a5 {[%emt 0:01:00]} b5 {[%emt 0:03:30]} 14. axb6 {[%emt 0:01:30]} Rxb6 {[%emt 0:00:30]} 15. Qc2 {[%emt 0:07:30]} Nb5 {[%emt 0:10:30]} 16. Be3 {[%emt 0:05:30]} Nd7 {[%emt 0:05:30]} 17. Nd2 {[%emt 0:05:30]} Ne5 {[%emt 0:04:30]} 18. Nxb5 {[%emt 0:22:30]} axb5 {[%emt 0:01:30]} 19. Be2 {[%emt 0:00:30]} Rb8 {[%emt 0:17:30]} 20. Kh1 {[%emt 0:07:30]} f5 {[%emt 0:06:30]} 21. f4 {[%emt 0:00:30]} Nf7 {[%emt 0:02:30]} 22. Bf3 {[%emt 0:11:30]} fxe4 {[%emt 0:03:37]} 23. Nxe4 {[%emt 0:01:30]} Re8 {[%emt 0:02:49]} 24. Bf2 {[%emt 0:04:30]} b4 {[%emt 0:01:09]} 25. Qd2 {[%emt 0:06:30]} Bf5 {[%emt 0:03:18]} 26. Rfe1 {[%emt 0:00:30]} Ra8 {[%emt 0:01:16]} 27. Ng3 {[%emt 0:04:15]} Nh6 {[%emt 0:02:21]} 28. Be2 {[%emt 0:05:19]} Qf6 {[%emt 0:03:28]} 29. Nxf5 {[%emt 0:02:32]} Nxf5 {[%emt 0:00:33]} 30. Rxa8 {[%emt 0:04:16]} Rxa8 {[%emt 0:00:12]} 31. g4 {[%emt 0:00:26]} Nd4 {[%emt 0:00:29]} 32. Bd1 {[%emt 0:00:30]} Qf7 {[%emt 0:01:32]} 33. Bxd4 {[%emt 0:01:15]} Qxd5+ {[%emt 0:00:32]} 34. Qg2 {[%emt 0:00:34]} Qxg2+ {[%emt 0:00:41]} 35. Kxg2 {[%emt 0:00:30]} Bxd4 {[%emt 0:00:00]} 36. Bf3 {[%emt 0:00:07]} Ra7 {[%emt 0:01:10]} 37. Bd5+ {[%emt 0:00:53]} Kf8 {[%emt 0:01:56]} 38. b3 {[%emt 0:00:26]} Ra2+ {[%emt 0:02:55]} 39. Kh1 {[%emt 0:00:11]} Rf2 {[%emt 0:01:13]} 40. Re6 {[%emt 0:01:13]} Rxf4 {[%emt 0:00:49]} 41. Rxd6 {[%emt 0:00:05]} Rf2 {[%emt 0:00:38]} 42. Re6 {[%emt 0:00:26]} 1/2-1/2

[Event "4th Baskent University Open 2019"]
[Site "Ankara"]
[Date "2019.06.18"]
[Round "3"]
[White "Buke, Furkan"]
[Black "Gunduz, Umut Erdem"]
[Result "0-1"]
[ECO "C41"]
[WhiteElo "1935"]
[BlackElo "2302"]
[Annotator "NA"]
[PlyCount "132"]
[EventDate "2019.06.18"]
[EventType "swiss"]
[EventCountry "TUR"]
[SourceTitle "playchess.com"]
[Source "ChessBase"]
[SourceQuality "1"]
[TimeControl "5400+30"]

1. e4 {[%emt 0:02:30]} d6 {[%emt 0:10:30]} 2. d4 {[%emt 0:00:30]} Nf6 {[%emt 0:00:30]} 3. Nc3 {[%emt 0:00:30]} e5 {[%emt 0:00:00]} 4. Nf3 {[%emt 0:00:00]} Nbd7 {[%emt 0:00:00]} 5. Bc4 {[%emt 0:00:00]} Be7 {[%emt 0:00:00]} 6. a4 {[%emt 0:00:30]} O-O {[%emt 0:00:00]} 7. O-O {[%emt 0:00:00]} a5 {[%emt 0:00:30]} 8. Re1 {[%emt 0:00:00]} c6 {[%emt 0:00:00]} 9. Ba2 {[%emt 0:00:30]} Qc7 {[%emt 0:06:00]} 10. h3 {[%emt 0:01:30]} exd4 {[%emt 0:21:30]} 11. Nxd4 {[%emt 0:00:30]} Nc5 {[%emt 0:00:00]} 12. Qf3 {[%emt 0:00:30]} Re8 {[%emt 0:02:00]} 13. Bf4 {[%emt 0:08:30]} Ne6 {[%emt 0:11:30]} 14. Nxe6 {[%emt 0:03:30]} Bxe6 {[%emt 0:00:30]} 15. Bxe6 {[%emt 0:00:00]} fxe6 {[%emt 0:00:30]} 16. e5 {[%emt 0:00:00]} dxe5 {[%emt 0:00:30]} 17. Bxe5 {[%emt 0:00:30]} Qb6 {[%emt 0:00:30]} 18. Ne4 {[%emt 0:00:30]} Rf8 {[%emt 0:00:30]} 19. Qg3 {[%emt 0:05:30]} Nh5 {[%emt 0:07:30]} 20. Qg4 {[%emt 0:09:30]} Rf5 {[%emt 0:01:30]} 21. Bc3 {[%emt 0:00:30]} Raf8 {[%emt 0:02:30]} 22. Rad1 {[%emt 0:01:30]} e5 {[%emt 0:18:53]} 23. Qe2 {[%emt 0:08:30]} Nf4 {[%emt 0:05:03]} 24. Qe3 {[%emt 0:00:30]} Qa6 {[%emt 0:06:20]} 25. Ng3 {[%emt 0:09:30]} R5f7 {[%emt 0:00:01]} 26. Bxe5 {[%emt 0:01:30]} Nd5 {[%emt 0:00:17]} 27. Qe2 {[%emt 0:00:30]} Rxf2 {[%emt 0:01:26]} 28. Qxf2 {[%emt 0:04:30]} Rxf2 {[%emt 0:00:30]} 29. Kxf2 {[%emt 0:00:30]} Bc5+ {[%emt 0:00:23]} 30. Bd4 {[%emt 0:01:30]} Bxd4+ {[%emt 0:00:43]} 31. Rxd4 {[%emt 0:00:30]} Qb6 {[%emt 0:00:00]} 32. Red1 {[%emt 0:00:30]} Qxb2 {[%emt 0:00:00]} 33. R1d2 {[%emt 0:00:30]} Qc3 {[%emt 0:00:12]} 34. R4d3 {[%emt 0:01:30]} Qc5+ {[%emt 0:00:21]} 35. Rd4 {[%emt 0:00:30]} Nf6 {[%emt 0:02:39]} 36. Kg1 {[%emt 0:02:30]} b5 {[%emt 0:00:23]} 37. Kh1 {[%emt 0:02:30]} Qa3 {[%emt 0:00:49]} 38. Nf5 {[%emt 0:00:30]} bxa4 {[%emt 0:00:33]} 39. c4 {[%emt 0:09:30]} Qc5 {[%emt 0:01:11]} 40. Rf4 {[%emt 0:00:30]} a3 {[%emt 0:00:44]} 41. Rf3 {[%emt 0:00:30]} h5 {[%emt 0:01:23]} 42. Ra2 {[%emt 0:02:30]} Ne4 {[%emt 0:01:18]} 43. Ng3 {[%emt 0:03:30]} Nd6 {[%emt 0:00:10]} 44. Raxa3 {[%emt 0:02:30]} h4 {[%emt 0:00:30]} 45. Ne2 {[%emt 0:00:30]} Qxc4 {[%emt 0:00:38]} 46. Nc3 {[%emt 0:01:58]} Nb5 {[%emt 0:00:37]} 47. Nxb5 {[%emt 0:05:26]} cxb5 {[%emt 0:00:30]} 48. Rac3 {[%emt 0:01:44]} Qe4 {[%emt 0:00:28]} 49. Rc5 {[%emt 0:01:06]} Qb1+ {[%emt 0:01:12]} 50. Kh2 {[%emt 0:00:06]} a4 {[%emt 0:00:01]} 51. Rff5 {[%emt 0:01:51]} a3 {[%emt 0:00:30]} 52. Rxb5 {[%emt 0:02:32]} a2 {[%emt 0:00:07]} 53. Rxb1 {[%emt 0:00:11]} axb1=Q {[%emt 0:00:30]} 54. Rf3 {[%emt 0:00:00]} Kh7 {[%emt 0:00:33]} 55. Re3 {[%emt 0:00:00]} Kh6 {[%emt 0:00:26]} 56. Rc3 {[%emt 0:00:34]} Qe4 {[%emt 0:00:26]} 57. Rf3 {[%emt 0:00:18]} Qxf3 {[%emt 0:01:59]} 58. gxf3 {[%emt 0:00:30]} Kg5 {[%emt 0:00:00]} 59. Kg2 {[%emt 0:00:18]} Kf4 {[%emt 0:00:08]} 60. Kf2 {[%emt 0:00:05]} g5 {[%emt 0:00:53]} 61. Ke2 {[%emt 0:00:36]} Kg3 {[%emt 0:00:30]} 62. Ke3 {[%emt 0:00:00]} Kxh3 {[%emt 0:00:05]} 63. Kf2 {[%emt 0:00:00]} Kh2 {[%emt 0:00:00]} 64. f4 {[%emt 0:00:02]} gxf4 {[%emt 0:00:55]} 65. Kf3 {[%emt 0:00:05]} Kg1 {[%emt 0:00:21]} 66. Kxf4 {[%emt 0:00:30]} h3 {[%emt 0:00:00]} 0-1